Cogmind - Beta 15 @@@ ROGUE MODE // 2025.07.18 @ 18:34:51 Player: EX-OCT Result: Destroyed by 6Z-BEA(R) with Subdweller Laser Performance ------------- Evolutions (0) 0 Regions Visited (2) 400 Robots Destroyed (19) 95 Value Destroyed (344) 344 Prototype IDs (0) 0 Alien Tech Used (0) 0 Bonus (0) 0 TOTAL SCORE: 839 Bonus ------- None Cogmind --------- Core Integrity 0/250 Matter 300/300 Energy 98/100 System Corruption 0% Temperature Cool (6) Movement Flying (37) Location -10/Subcaves Parts ------- > --- POWER (1) -------- (None) > --- PROPULSION (2) --- Flight Unit Flight Unit > --- UTILITY (2) ------ Structural Scanner Makeshift Light Armor Plating > --- WEAPON (2) ------- Light Assault Rifle Hammer > --- INVENTORY (5) ---- Light Ion Engine Subdweller Power Source Large Storage Unit Subdweller Laser Subdweller Beam Cannon Peak State ------------ > --- POWER ------------ (None) > --- PROPULSION ------- Flight Unit Flight Unit > --- UTILITY ---------- Structural Scanner Makeshift Light Armor Plating > --- WEAPON ----------- Light Assault Rifle Hammer > --- INVENTORY -------- Light Ion Engine Subdweller Power Source Flight Unit Large Storage Unit Subdweller Beam Cannon [Rating: 9] Favorites ----------- Power Light Ion Engine Engine Light Ion Engine Propulsion Flight Unit Flight Unit Flight Unit Utility Structural Scanner Device Structural Scanner Protection Propulsion Shielding Weapon Hammer Energy Gun EM Pulse Gun Ballistic Gun Light Assault Rifle Impact Weapon Hammer Build | -11 -10 -10 ------- Run | Yrd Mat Sub Slots Evolved . | . . . Power . | . . . Propulsion . | . . . Utility . | . . . Weapon . | . . . Parts Attached 13 | 2 10 1 Power 1 | . 1 . Engine 1 | . 1 . Core . | . . . Reactor . | . . . Propulsion 4 | . 4 . Treads . | . . . Leg . | . . . Wheel . | . . . Hover . | . . . Flight 4 | . 4 . Utility 4 | 1 2 1 Device 2 | 1 1 . Storage . | . . . Processor . | . . . Hackware . | . . . Protection 2 | . 1 1 Artifact . | . . . Weapon 4 | 1 3 . Energy Gun 1 | 1 . . Energy Cannon . | . . . Ballistic Gun 1 | . 1 . Ballistic Cannon . | . . . Launcher . | . . . Special Weapon . | . . . Impact Weapon 2 | . 2 . Slashing Weapon . | . . . Piercing Weapon . | . . . Special Melee Weapon . | . . . Unidentified Prototypes . | . . . Parts Lost 4 | . 3 1 Power . | . . . Propulsion 2 | . 1 1 Utility 1 | . 1 . Weapon 1 | . 1 . Highest Loss Streak 3 | . 3 1 To Critical Strikes . | . . . Average Backups 3 | . 2 4 Power 1 | . 1 1 Propulsion . | . . . Utility . | . . 1 Weapon . | . . 1 Tool/Special . | . . . Unused Backups 5 | . . 5 Power 2 | . . 2 Propulsion . | . . . Utility 1 | . . 1 Weapon 2 | . . 2 Tool/Special . | . . . Average Slot Usage (%) 82 | . 80 85 Engine 3 | . 5 . Flight 27 | . 26 28 Device 14 | . 14 14 Protection 9 | . 7 14 Energy Gun 2 | . 4 . Ballistic Gun 8 | . 5 14 Impact Weapon 15 | . 15 14 Peak Build Rating 9 | 2 7 9 Average Rating 6 | 1 5 8 On Entrance 2 | . 2 6 Naked Turns . | . . . Heaviest Build 8 | 3 8 8 Greatest Support 8 | 3 8 8 Greatest Overweight (x) . | . . . Average Overweight (x) . | . . . Largest Inventory Capacity 5 | 5 5 5 Average Capacity 5 | 5 5 5 Most Carried 5 | 1 4 5 Average Carried 3 | . 2 4 Final Capacity 5 | 5 5 5 Final Carried 5 | 1 3 5 Class Distribution -------------------- 100% | Mutant Dominant Class ---------------- Mutant | -10/Materials Mutant | -10/Subcaves Resources | -11 -10 -10 ----------- Run | Yrd Mat Sub Matter Collected 360 | 220 120 20 Remotely . | . . . Salvage Created 588 | 119 469 . Parts 16 | 5 11 . Haulers Intercepted 1 | . 1 . Recyclers Shooed . | . . . Parts Field Recycled . | . . . Retrieved Matter . | . . . Parts Self-Destructed 12 | . . 12 Prevented . | . . . Kills | -11 -10 -10 ------- Run | Yrd Mat Sub Combat Hostiles Destroyed 12 | . 12 . Melee 5 | . 5 . Guns 3 | . 3 . Classes Destroyed 7 | 2 5 . Tunneler 2 | 2 . . Hauler 1 | . 1 . Recycler 1 | 1 . . Mechanic 1 | . 1 . Watcher 2 | . 2 . Swarmer 6 | . 6 . Grunt 6 | . 6 . Best Kill Streak 4 | 2 4 . Combat Bots Only 3 | . 3 . Max Kills in Single Turn 1 | 1 1 . Gunslinging . | . . . Exploded . | . . . Melee 1 | . 1 . Uniques/NPCs Destroyed . | . . . Combat | -11 -10 -10 -------- Run | Yrd Mat Sub Hostile Shots Fired 93 | . 80 13 Missed 39 | . 34 5 Hits 54 | . 46 8 Projectile 54 | . 46 8 Critical Strikes 2 | . 2 . Damage Taken 662 | 6 489 167 Core 258 | 3 215 40 Absorbed by Shields . | . . . Redirected to Shielding 4 | . 4 . Core Remaining (%) 98 | 98 . . Volleys Fired 28 | 11 17 . Largest 1 | 1 1 . Hottest 40 | 40 40 . Shots Fired 28 | 11 17 . Gun 28 | 11 17 . Cannon . | . . . Launcher . | . . . Special . | . . . Kinetic . | . . . Thermal . | . . . Explosive . | . . . Electromagnetic 28 | 11 17 . Robot Hit Streak 6 | 2 6 . Robot Miss Streak 3 | 2 3 . Penetration Max . | . . . Secondary Targets . | . . . Shots Hit Robots 49 | 6 40 3 Core Hits 12 | 3 9 . Critical Kills . | . . . Critical Parts Destroyed 7 | . 7 . Critical Strikes 7 | . 7 . Smash 7 | . 7 . Melee Attacks 81 | . 51 30 Impact 81 | . 51 30 Slashing . | . . . Piercing . | . . . Sneak Attacks 6 | . 3 3 Combat Hostiles . | . . . Follow-up Attacks 3 | . 3 . Damage Inflicted 1160 | 136 947 77 Guns 244 | 82 162 . Cannons . | . . . Explosions 54 | 54 . . Melee 862 | . 785 77 Ramming . | . . . Kinetic . | . . . Thermal 54 | 54 . . Explosive . | . . . Electromagnetic 244 | 82 162 . Impact 862 | . 785 77 Slashing . | . . . Piercing . | . . . Highest Corruption . | . . . Average Corruption . | . . . Corruption Purged . | . . . Corruption Blocked . | . . . Overload Shots . | . . . Overflow Damage 264 | . 227 37 Projectiles . | . . . Explosions . | . . . Melee 264 | . 227 37 Knockbacks 2 | . 2 . Impact 2 | . 2 . Kinetic . | . . . Secondary . | . . . Self-Inflicted Damage 6 | 6 . . Shots 1 | 1 . . Rammed . | . . . Targets Rammed . | . . . Kicked . | . . . Crushed . | . . . Highest Temperature 62 | 7 62 . Average Temperature 20 | 4 21 . Received Heat Transfer 258 | . 225 33 Siege Activations . | . . . Martial Activations . | . . . Shielding Activations . | . . . Robots Disrupted . | . . . Combat Hostiles . | . . . Robots Corrupted 6 | . 6 . Combat Hostiles 4 | . 4 . Parts Fried 11 | 1 10 . Impact Corruptions 15 | . 14 1 Robots Melted . | . . . Combat Hostiles . | . . . Parts Melted . | . . . Heat Transferred 50 | 50 . . Parts Sabotaged . | . . . Parts Stolen . | . . . Parts Stripped . | . . . Power Chain Reactions 2 | 2 . . Alert | -11 -10 -10 ------- Run | Yrd Mat Sub Maximum Alert Level 1 | . 1 . Low Security (%) 94 | 100 93 . Level 1 5 | . 6 . Level 2 . | . . . Level 3 . | . . . Level 4 . | . . . Level 5 . | . . . High Security . | . . . Max Security . | . . . Peak Influence 210 | 5 210 . Initial 3 | . 3 . Average 102 | 2 112 . Influence Increases 470 | 15 455 . Destroy 0b10 Robot/C 240 | . 240 . Destroy 0b10 Robot/NC 35 | 15 20 . Destroy Leader 46 | . 46 . Successful Hack 11 | . 11 . Select Force Hacks 30 | . 30 . Destroy Structure 3 | . 3 . Partial Spotted 15 | . 15 . Lose Combat Pursuer 90 | . 90 . Influence Decreases 470 | 10 319 141 Entered New Map 71 | . 2 69 Time Decay 359 | 10 287 62 Lost Part 40 | . 30 10 Squads Dispatched 2 | . 2 . Investigation 2 | . 2 . Extermination . | . . . Reinforcement . | . . . Assault . | . . . Garrison . | . . . Intercept . | . . . Searches Triggered . | . . . Construction Impeded . | . . . Haulers Reinforced . | . . . Active Scanning Responses . | . . . Cargo Convoy Interrupts . | . . . Stealth | -11 -10 -10 --------- Run | Yrd Mat Sub Distress Signals 1 | . 1 . Communications Jammed . | . . . Distress Signals . | . . . Times Spotted 38 | . 22 16 Peak Tracking Total 6 | . 5 6 Tactical Retreats 7 | . 3 4 Traps | -11 -10 -10 ------- Run | Yrd Mat Sub Traps Triggered 1 | . 1 . Indirectly . | . . . Trap Hack Attempts . | . . . Triggered . | . . . Disarmed . | . . . Reprogrammed . | . . . Reused . | . . . Traps Extracted . | . . . Installed . | . . . Triggered . | . . . Machines | -11 -10 -10 ---------- Run | Yrd Mat Sub Machines Disabled . | . . . Max in Single Turn . | . . . Machines Repaired . | . . . Machines Dismantled . | . . . Machines Sabotaged . | . . . Overloaded Fab Kills . | . . . Hacking | -11 -10 -10 --------- Run | Yrd Mat Sub Machines Accessed 9 | . 9 . Terminals 7 | . 7 . Fabricators . | . . . Repair Stations 1 | . 1 . Recycling Units 1 | . 1 . Scanalyzers . | . . . Garrison Access . | . . . Total Hacks 19 | . 19 . Successful 11 | . 11 . Failed 8 | . 8 . Catastrophic . | . . . Database Lockouts . | . . . Manual 18 | . 18 . Terminals 17 | . 17 . Fabricators . | . . . Repair Stations 1 | . 1 . Recycling Units 1 | . 1 . Scanalyzers . | . . . Garrison Access . | . . . Terminal Hacks 2 | . 2 . Robot Analysis 2 | . 2 . Fabricator Hacks . | . . . Repair Station Hacks . | . . . Recycling Unit Hacks . | . . . Scanalyzer . | . . . Garrison Access Hacks . | . . . Unauthorized Hacks 9 | . 9 . Terminals 8 | . 8 . Botnet 2 | . 2 . Disrupt 1 | . 1 . Skim 5 | . 5 . Fabricators . | . . . Repair Stations . | . . . Recycling Units 1 | . 1 . Tunnel 1 | . 1 . Scanalyzers . | . . . Garrison Access . | . . . Data Cores Recovered . | . . . Used . | . . . Hacking Detections 8 | . 8 . Full Trace Events . | . . . Feedback Events . | . . . Feedback Blocked . | . . . Robot Schematics Acquired . | . . . Robots Built . | . . . Authchips . | . . . Time . | . . . Total Robot Build Rating . | . . . Part Schematics Acquired . | . . . Parts Built . | . . . Authchips . | . . . Time . | . . . Total Part Build Rating . | . . . Parts Repaired . | . . . Time . | . . . Parts Recycled . | . . . Recycled Matter . | . . . Retrieved Matter . | . . . Retrieved Components . | . . . Parts Scanalyzed . | . . . Part Schematics Acquired . | . . . Parts Damaged . | . . . Bothacking | -11 -10 -10 ------------ Run | Yrd Mat Sub Used RIF Installer . | . . . Robots Hacked . | . . . Non-combat . | . . . Combat . | . . . Robot Hacks Applied . | . . . Relay Couplers Released . | . . . Fabnet Peak Effective % . | . . . Robots Rewired . | . . . Allies Hacked . | . . . Hacks Repelled . | . . . Allies | -11 -10 -10 -------- Run | Yrd Mat Sub Total Allies . | . . . Largest Group . | . . . Highest-Rated Group . | . . . Highest-Rated Ally . | . . . Total Orders . | . . . Ally Attacks . | . . . Total Damage . | . . . Kills . | . . . Allies Corrupted . | . . . Allies Melted . | . . . Intel | -11 -10 -10 ------- Run | Yrd Mat Sub Active Infowar (turns) 1010 | 4 620 386 Structural 848 | . 462 386 Seismic 231 | 4 227 . Robot Analysis Total 2 | . 2 . Derelict Logs Recovered 2 | . . 2 Drone Launches . | . . . Drone Recoveries . | . . . Exploration | -11 -10 -10 ------------- Run | Yrd Mat Sub Turns Passed 1108 | 68 654 386 Spaces Moved 1250 | 38 767 445 Core 78 | 38 40 . Treads . | . . . Legs . | . . . Wheels . | . . . Hover . | . . . Flight 1172 | . 727 445 Fastest Speed 37 | 50 37 37 Average Speed 37 | 50 37 37 Slowest Speed 50 | 50 50 37 Overloaded Moves . | . . . Propulsion Burnouts . | . . . Robots Hopped 9 | . 7 2 Potential Cave-ins . | . . . Cave-ins Triggered 1 | . . 1 Exploration Rate (%) 41 | 4 98 22 Regions Visited 2 Branch Regions 1 Pre-discovered Areas 2 | . 2 . Known Exits Taken 1 | . 1 . Unknown Exits Taken 1 | 1 . . Scrap Searched 3 | . . 3 Spaces Dug 11 | . 3 8 Terrain Destroyed 19 | 8 3 8 Melee 11 | . 3 8 Projectile . | . . . AOE 8 | 8 . . Terrain Rammed . | . . . Walls Destroyed . | . . . Machines Disabled . | . . . Actions | -11 -10 -10 --------- Run | Yrd Mat Sub Total 1706 | 74 1019 613 Wait 332 | 23 175 134 Move 1231 | 37 752 442 Hop 8 | . 7 1 Pick Up 7 | 1 3 3 Fast Attach 10 | 2 7 1 Attach 5 | . 4 1 Detach 2 | . 2 . Swap 2 | . 2 . Drop 3 | . 2 1 Fire 28 | 11 17 . Melee 78 | . 48 30 Ram . | . . . Kick . | . . . Crush . | . . . Escape Stasis . | . . . Rewire . | . . . Trap . | . . . Miscellaneous . | . . . Route ------- -11/Scrapyard -10/Materials (discovered 5 exits: [*Mat x3] / [*Min] / *Sub) -10/Subcaves (discovered 3 exits: Mat x2 / Rec) History --------- Turn | Location | Event 9 | -11/Scrapyard | Discovered new exit (range 14) 69 | -11/Scrapyard | Entered Materials 115 | -10/Materials | Discovered new exit (range 9) 141 | -10/Materials | Discovered new exit (range 14) 323 | -10/Materials | Build established: Mutant 327 | -10/Materials | Lost 3 parts (1n1u1w) 380 | -10/Materials | Core integrity fell below 50% 393 | -10/Materials | Discovered new exit (range 5) 416 | -10/Materials | Core integrity fell below 20% 453 | -10/Materials | Learned 2 Storage zone layouts 499 | -10/Materials | Discovered new exit (range 16) 501 | -10/Materials | Learned 2 Mines zone layouts 540 | -10/Materials | Identified exit to Subcaves 540 | -10/Materials | Learned location of 1 exit from Materials 570 | -10/Materials | Learned Storage machine intel 596 | -10/Materials | Learned Storage emergency access door positions 597 | -10/Materials | Learned 2 Mines zone layouts 697 | -10/Materials | Learned location of 2 exits from Materials 723 | -10/Materials | Entered Subcaves 724 | -10/Subcaves | Approached by a straggling Scientist 724 | -10/Subcaves | Identified exit to Materials 725 | -10/Subcaves | Identified exit to Recycling 798 | -10/Subcaves | Shifting Twisted Machinery released Sub. Laser 801 | -10/Subcaves | Shifting Twisted Machinery released Mak. Light Armor Plating 820 | -10/Subcaves | Learned Materials stockpile data 1089 | -10/Subcaves | Crushed by falling debris 1108 | -10/Subcaves | Ambushed by Subdweller buried in earth 1109 | -10/Subcaves | Destroyed by 6Z-BEA(R) with Subdweller Laser Last Messages --------------- Sub. Laser falls loose from the Twisted Machinery. Mak. Light Armor Plating falls loose from the Twisted Machinery. 00801_ Acquired Sub. Laser. 00816_ Sneak attack on 6N-W0L(u). 00820_ Acquired derelict log, extracted data. Data stored: Materials stockpile data. 00833_ Sneak attack on LQ-JUF(u). 00833_ Destroyed Lgt. Ion Engine. 00833_ LQ-JUF(u) system corrupted by crushing effect. 00856_ Acquired 10 matter. 00933_ CW-IBF(R): "SUBMAD!" 00974_ 6N-W0L(u) builds Twisted Machinery. 00986_ Sneak attack on 6N-W0L(u). 01075_ 6N-W0L(u) builds Twisted Machinery. 01089_ The unstable cave ceiling collapses. 01089_ Crushed by falling debris. 01109_ 6Z-BEA(R): "ARGHSUB!" Map ----- +----------------------------------------------------+ | """ """###????????????????????????????????? | | ## "######????????????????????????????????? | | #### ######?????????????????????????????????? | | #### ###????????????????????????????????????? | | ### "###?????????????????????????????????????? | | ## "#########????????????????????????????????? | | ### ##########???????????????????????????????? | | ## #"" #""## ###???????????????????????????????? | | ## ##"""""""" ##???????????????????????????????? | | ## ## """ ##???????????????????????????????? | | ## """"##???????????????????????????????? | | ## ""!##???????????????????????????????? | | # """###??????????????????????????????? | | ### ""###??????#####???????????????????? | | ####### """##??????#####???????????????????? | | ######## "###?????" ??? ????????????? | | ###???##"" ######## "" ????? ##????????????? | | #####????## ######## """" ??? ##????????????? | | #####????## ##### "" ""?? ###???????????? | | #????????### ### ##????? ###?? ????????? | | ?????????### ###?????" ## ???????? | | ??????????## ####?????"" ## ???????? | | ######???#### ## # ###?## ? ??????? | | #######?#### ############### ? ??????? | | ## #######"############## ### ??????? | | ##### ####### ######@#### ????????? | | # ## ##### #####;#### ##?????????? | | ## ### ### R##### ###?????????? | | ## ## ##??????????? | | ### %= ????? | | #### ## ????? | | ### # ##### ### ????? | | ##### ######## ?????? | | ######### ########### ### ?????? | | # ########?###### ###?????### ####? ??????? | | ############?????#######?????????? ##???? ??????? | | ######????????????######?????????? ###???????????? | | ?????????????????????????????????? ###???????????? | | ?????????????????????????????????????????????????? | | ?????????????????????????????????????????????????? | | ?????????????????????????????????????????????????? | | ?????????????????????????????????????????????????? | | ?????????????????????????????????????????????????? | | ?????????????????????????????????????????????????? | | ?????????????????????????????????????????????????? | | ?????????????????????????????????????????????????? | | ?????????????????????????????????????????????????? | | ?????????????????????????????????????????????????? | | ?????????????????????????????????????????????????? | | ?????????????????????????????????????????????????? | +----------------------------------------------------+ Best States ------------- Heat Dissipation 25 Energy Generation 10 Energy Capacity 125 Matter Stores 300 Matter Capacity 300 Sight Range 16 Terrain Scan Density 10 Armor Coverage 100 Propulsion Shielding 33 Evasion (%) 62 Item Schematics ----------------- None Robot Schematics ------------------ None Fabricated ------------ Nothing Repaired ---------- Nothing Alien Tech Used ----------------- None Achievements -------------- None Challenges ------------ None Game ------ Seed ReactionMomentumReactor Manual? 0 Play Time 00:23:12 Cumulative 345.9 hours Start 2025.07.18 @ 18:00:48 End 2025.07.18 @ 18:34:51 Sessions 1 Manual Loads 0 Difficulty Rogue Special Mode None Game No. 165 Rogue 165 Adventurer 0 Explorer 0 Win Type - Total 23 Types 8/1/5/1/5/1/0/1/0/1 Lore% 89 Gallery% 79 Achievement% 76 Wizard Run 0 Options --------- Layout 1 ASCII 0 Keyboard 0 Movement Numpad Keybinds 0 Fullscreen 1 Font 24/Smallcaps Map View 50x35 Zoom Use 0% Tactical HUD 1 Map Filters NONE Filters NONE Steam 1 RUN: 3401f61a-4982-4dda-a6b1-d0a4f54df87e